fUSD/lending_fUSD_20240225
["ID","MTS","AMOUNT","RATE_DAILY","PERIOD"]
[315150601,1708890634128,-500.0,0.00023857,2]
[315150602,1708890634137,-194.84,0.00023857,2]
[315150603,1708890634147,-184.42,0.00023857,2]
[315150604,1708890634156,-500.0,0.00023857,2]
[315150605,1708890634165,-500.0,0.00023857,2]
[315150606,1708890634175,-500.0,0.00023857,2]
[315150607,1708890634185,-500.0,0.00023857,2]
[315150608,1708890634194,-500.0,0.00023857,2]
[315150609,1708890634203,-511.77004743,0.00023857,2]
[315150610,1708890634213,-500.0,0.00023857,2]
[315150611,1708890634223,-500.0,0.00023857,2]
[315150612,1708890634232,-773.62,0.00023857,2]
[315150613,1708890634241,-5800.0,0.00023858,2]
[315150614,1708890634250,-5800.0,0.00023866,2]
[315150615,1708890634259,-355.26427385,0.00023871,2]
[315150616,1708890634268,-355.26427385,0.00023886,2]
[315150617,1708890634278,-193.64478346,0.00023894,2]
[315150618,1708890634287,-500.0,0.00023896,2]
[315150619,1708890634296,-500.0,0.00023897,2]
[315150620,1708890634306,-500.0,0.00023897,2]
[315150621,1708890634316,-441.79,0.00023897,2]
[315150622,1708890634324,-500.0,0.00023897,2]
[315150623,1708890634335,-180.75,0.00023897,2]
[315150624,1708890634345,-713.25,0.00023897,2]
[315150625,1708890634355,-500.0,0.00023897,2]
[315150626,1708890634364,-481.5,0.00023897,2]
[315150627,1708890634373,-500.0,0.00023897,2]
[315150628,1708890634382,-500.0,0.00023897,2]
[315150629,1708890634391,-500.0,0.00023897,2]
[315150630,1708890634401,-500.0,0.00023897,2]
[315150631,1708890634410,-500.0,0.00023897,2]
[315150632,1708890634419,-591.19,0.00023897,2]
[315150633,1708890634428,-500.0,0.00023897,2]
[315150634,1708890634437,-227.8,0.00023897,2]
[315150635,1708890634446,-500.0,0.00023897,2]
[315150636,1708890634455,-570.0,0.00023897,2]
[315150637,1708890634465,-500.0,0.00023898,2]
[315150638,1708890634474,-500.0,0.00023898,2]
[315150639,1708890634483,-224.08752592,0.00023898,2]
[315150640,1708890634492,-500.0,0.00023898,2]
[315150641,1708890634502,-158.50565445,0.00023898,2]
[315150642,1708890634511,-166.0,0.00023898,2]
[315150643,1708890634521,-500.0,0.00023898,2]
[315150644,1708890634530,-500.0,0.00023898,2]
[315150645,1708890634539,-500.0,0.00023899,2]
[315150646,1708890634548,-500.0,0.00023899,2]
[315150647,1708890634557,-500.0,0.00023899,2]
[315150648,1708890634567,-500.0,0.00023899,2]
[315150649,1708890634578,-175.29577819,0.00023899,2]
[315150650,1708890634589,-2430.04414175,0.00023899,2]
[315150651,1708890634598,-500.0,0.00023899,2]
[315150652,1708890634608,-500.0,0.00023899,2]
[315150653,1708890634620,-500.0,0.00023899,2]
[315150654,1708890634629,-500.0,0.00023899,2]
[315150655,1708890634638,-500.0,0.00023899,2]
[315150656,1708890634648,-500.0,0.00023899,2]
[315150657,1708890634658,-572.13,0.00023899,2]
[315150658,1708890634668,-500.0,0.00023899,2]
[315150659,1708890634677,-500.0,0.00023899,2]
[315150660,1708890634686,-500.0,0.00023899,2]
[315150661,1708890634695,-500.0,0.00023899,2]
[315150662,1708890634704,-334.59,0.00023899,2]
[315150663,1708890634713,-614.79,0.00023899,2]
[315150664,1708890634722,-348.43,0.00023899,2]
[315150665,1708890634731,-500.0,0.00023899,2]
[315150666,1708890634740,-500.0,0.00023899,2]
[315150667,1708890634749,-1226.88,0.00023899,2]
[315150668,1708890634759,-500.0,0.00023899,2]
[315150669,1708890634768,-500.0,0.00023899,2]
[315150670,1708890634777,-500.0,0.00023899,2]
[315150671,1708890634786,-448.77,0.00023899,2]
[315150672,1708890634796,-188.94,0.00023899,2]
[315150673,1708890634806,-1000.17,0.00023899,2]
[315150674,1708890634815,-904.44,0.00023899,2]
[315150675,1708890634824,-500.0,0.00023899,2]
[315150676,1708890634834,-897.3,0.00023899,2]
[315150677,1708890634843,-512.14,0.00023899,2]
[315150678,1708890634853,-500.0,0.00023899,2]
[315150679,1708890634862,-2430.04414174,0.00023899,2]
[315150680,1708890634871,-2430.04414174,0.00023899,2]
[315150681,1708890634881,-2430.04414174,0.00023899,2]
[315150682,1708890634890,-2430.04414174,0.00023899,2]
[315150683,1708890634900,-2430.04414174,0.00023899,2]
[315150684,1708890634909,-2430.04414174,0.000239,2]
[315150685,1708890634918,-2430.04414174,0.000239,2]
[315150686,1708890634927,-2430.04414174,0.000239,2]
[315150687,1708890634936,-2430.04414174,0.000239,2]
[315150688,1708890634945,-2430.04414174,0.000239,2]
[315150689,1708890634954,-3402.4968459,0.000239,2]
[315150690,1708890634963,-193.64478346,0.000239,2]
[315150691,1708890634972,-825.2,0.000239,2]
[315150692,1708890634982,-2200.0,0.000239,2]
[315150693,1708890634991,-355.26427385,0.000239,2]
[315150694,1708890635000,-2430.04414174,0.000239,2]
[315150695,1708890635010,-602.75288917,0.000239,2]
[315150696,1708890635019,-155.4141422,0.000239,4]
[315150697,1708890635028,-525.60247946,0.000239,2]
[315150698,1708890635038,-500.0,0.00023983,2]
[315150699,1708890635048,-500.0,0.00023983,2]
[315150700,1708890635057,-500.0,0.00023984,2]
[315150701,1708890635066,-500.0,0.00023986,2]
[315150702,1708890635075,-500.0,0.00023986,2]
[315150703,1708890635085,-236.42,0.00023987,2]
[315150704,1708890635094,-459.72130238,0.00023987,2]
[315150705,1708890635104,-500.0,0.00023987,2]
[315150706,1708890635113,-500.0,0.00023987,2]
[315150707,1708890635123,-500.0,0.00023987,2]
[315150708,1708890635132,-271.40801942,0.00023987,2]
[315150709,1708890635141,-250.28031488,0.00023987,2]
[315150710,1708890635151,-521.47,0.00023987,2]
[315150711,1708890635160,-500.0,0.00023987,2]
[315150712,1708890635170,-500.0,0.00023987,2]
[315150713,1708890635179,-500.0,0.00023987,2]
[315150714,1708890635188,-500.0,0.00023987,2]
[315150715,1708890635198,-500.0,0.00023987,2]
[315150716,1708890635208,-500.0,0.00023987,2]
[315150717,1708890635218,-500.0,0.00023987,2]
[315150718,1708890635227,-500.0,0.00023987,2]
[315150719,1708890635236,-500.0,0.00023987,2]
[315150720,1708890635246,-500.0,0.00023987,2]
[315150721,1708890635255,-500.0,0.00023987,2]
[315150722,1708890635264,-500.0,0.00023987,2]
[315150723,1708890635274,-500.0,0.00023987,2]
[315150724,1708890635283,-500.0,0.00023987,2]
[315150725,1708890635292,-500.0,0.00023987,2]
[315150726,1708890635301,-500.0,0.00023987,2]
[315150727,1708890635311,-387.61419309,0.00023987,2]
[315150728,1708890635320,-500.0,0.00023987,2]
[315150729,1708890635329,-202.05324048,0.00023987,2]
[315150730,1708890635339,-500.0,0.00023987,2]
[315150731,1708890635349,-500.0,0.00023987,2]
[315150732,1708890635358,-548.17,0.00023987,2]
[315150733,1708890635367,-500.0,0.00023987,2]
[315150734,1708890635376,-532.11494816,0.00023987,2]
[315150735,1708890635385,-500.0,0.00023987,2]
[315150736,1708890635394,-500.0,0.00023987,2]
[315150737,1708890635404,-713.25,0.00023987,2]
[315150738,1708890635413,-500.0,0.00023987,2]
[315150739,1708890635422,-500.0,0.00023987,2]
[315150740,1708890635431,-500.0,0.00023987,2]
[315150741,1708890635440,-500.0,0.00023987,2]
[315150742,1708890635449,-792.78,0.00023987,2]
[315150743,1708890635458,-602.69201238,0.00023987,2]
[315150744,1708890635467,-500.0,0.00023987,2]
[315150745,1708890635476,-500.0,0.00023987,2]
[315150746,1708890635485,-500.0,0.00023987,2]
[315150747,1708890635495,-572.85456374,0.00023987,2]
[315150748,1708890635504,-500.0,0.00023987,2]
[315150749,1708890635513,-174.81,0.00023987,2]
[315150750,1708890635523,-500.0,0.00023987,2]
[315150751,1708890635532,-500.0,0.00023987,2]
[315150752,1708890635541,-276.54636372,0.00023987,2]
[315150753,1708890635551,-500.0,0.00023987,2]
[315150754,1708890635561,-500.0,0.00023987,2]
[315150755,1708890635570,-500.0,0.00023987,2]
[315150756,1708890635581,-500.0,0.00023987,2]
[315150757,1708890635591,-500.0,0.00023987,2]
[315150758,1708890635600,-500.0,0.00023987,2]
[315150759,1708890635609,-652.9,0.00023987,2]
[315150760,1708890635620,-662.57,0.00023987,2]
[315150761,1708890635629,-500.0,0.00023987,2]
[315150762,1708890635638,-500.0,0.00023987,2]
[315150763,1708890635648,-500.0,0.00023987,2]
[315150764,1708890635657,-500.0,0.00023987,2]
[315150765,1708890635668,-500.0,0.00023987,2]
[315150766,1708890635677,-500.0,0.00023987,2]
[315150767,1708890635686,-500.0,0.00023987,2]
[315150768,1708890635695,-1270.45,0.00023987,2]
[315150769,1708890635704,-500.0,0.00023987,2]
[315150770,1708890635713,-591.19,0.00023987,2]
[315150771,1708890635722,-1000.17,0.00023987,2]
[315150772,1708890635731,-500.0,0.00023987,2]
[315150773,1708890635740,-500.0,0.00023987,2]
[315150774,1708890635749,-497.8328326,0.00023987,2]
[315150775,1708890635759,-500.0,0.00023987,2]
[315150776,1708890635768,-500.0,0.00023987,2]
[315150777,1708890635777,-512.14,0.00023987,2]
[315150778,1708890635787,-500.0,0.00023987,2]
[315150779,1708890635796,-773.62,0.00023987,2]
[315150780,1708890635805,-5104.14754246,0.00023988,2]
[315150781,1708890635854,-608.39243828,0.00023988,2]
[315150782,1708890636463,23900.0,0.00022902,2]
[315150784,1708890637901,-296.06075555,0.00023815,2]
[315150785,1708890637913,-1965.502409,0.00023815,2]
[315150786,1708890637923,-500.0,0.00023846,2]
[315150787,1708890637932,-150.0,0.00023986,2]
[315150788,1708890637941,-1438.31902594,0.00023988,2]
[315150789,1708890637952,-1298.21188729,0.00023988,2]
[315150790,1708890637963,-23536.16703233,0.00023988,2]
[315150791,1708890637974,-83454.2089621,0.00023988,2]
[315150792,1708890637989,-1876.68369629,0.00023988,2]
[315150793,1708890638127,-450.0,0.00023988,2]
[315150794,1708890638138,-3873.77225467,0.00023988,2]
[315150795,1708890638150,-500.0,0.00023988,2]
[315150796,1708890638161,-10230.19748815,0.00023988,2]
[315150797,1708890638173,-2176.75,0.00023988,2]
[315150798,1708890638188,-598.24385606,0.00023988,2]
[315150799,1708890638884,-2261.56316455,0.00023832,2]
[315150800,1708890638893,-17641.60944884,0.00023988,2]
[315150801,1708890638903,-2691.0,0.00023989,2]
[315150802,1708890638912,-956.0,0.00023989,2]
[315150803,1708890638922,-1258.0,0.00023989,2]
[315150804,1708890638931,-217.0,0.00023989,2]
[315150805,1708890638941,-1231.0,0.00023989,2]
[315150806,1708890638950,-865.767,0.00023989,2]
[315150807,1708890638959,-430.0,0.00023989,2]
[315150808,1708890638968,-397.116,0.00023989,2]
[315150809,1708890638978,-1012.272,0.00023989,2]
[315150810,1708890638987,-338.0,0.00023989,2]
[315150811,1708890638997,-1453.0,0.00023989,2]
[315150814,1708890639006,-2905.0,0.00023989,2]
[315150817,1708890639015,-1147.705,0.00023989,2]
[315150820,1708890639024,-285.24863385,0.00023989,2]
[315150822,1708890639036,-36.75136615,0.00023989,2]
[315150824,1708890639046,-1358.42027776,0.00023989,2]
[315150827,1708890639057,-290.08119832,0.00023989,2]
[315150829,1708890639069,-757.49852392,0.00023989,2]
[315150831,1708890639078,-7.46884839,0.00023989,2]
[315150867,1708890640538,-546.61,0.00023857,2]
[315150870,1708890640552,-5.32093703,0.00023987,2]
[315150873,1708890640569,-541.28906297,0.00023987,2]
[315150875,1708890640582,-290.53115161,0.00023989,2]
[315150877,1708890640593,-293.687,0.00023989,2]
[315150879,1708890640602,-391.169,0.00023989,2]
[315150880,1708890640612,-150.0,0.00023989,2]
[315150881,1708890640623,-150.0,0.00023989,2]
[315150882,1708890640632,-81.84055512,0.00023989,2]
[315150883,1708890640702,-621.07749459,0.00023989,2]
[315150884,1708890640761,-1593.08195029,0.00023989,2]
[315150885,1708890640770,-3821.61541364,0.00023989,2]
[315150892,1708890641618,-7307.91758636,0.00023989,2]
[315150894,1708890641629,-150.099,0.00023989,2]
[315150896,1708890641639,-200.0,0.00023989,2]
[315150898,1708890641648,-4110.0,0.00023989,2]
[315150900,1708890641658,-1040.0,0.00023989,2]
[315150902,1708890641668,-500.0,0.00023992,2]
[315150904,1708890641677,-500.0,0.00023992,2]
[315150906,1708890641687,-362.46,0.00023992,2]
[315150908,1708890641696,-500.0,0.00023992,2]
[315150910,1708890641706,-500.0,0.00023992,2]
[315150912,1708890641715,-500.0,0.00023992,2]
[315150914,1708890641724,-572.13,0.00023992,2]
[315150916,1708890641733,-614.79,0.00023992,2]
[315150918,1708890641742,-1226.88,0.00023992,2]
[315150920,1708890641752,-500.0,0.00023992,2]
[315150922,1708890641761,-904.44,0.00023992,2]
[315150924,1708890641770,-897.3,0.00023992,2]
[315150926,1708890641779,-500.0,0.00023992,2]
[315150928,1708890641789,-500.0,0.00023992,2]
[315150930,1708890641797,-500.0,0.00023993,2]
[315150932,1708890641807,-500.0,0.00023993,2]
[315150934,1708890641816,-500.0,0.00023993,2]
[315150936,1708890641825,-500.0,0.00023993,2]
[315150938,1708890641834,-500.0,0.00023993,2]
[315150971,1708890642121,-500.0,0.00023993,2]
[315150973,1708890642133,-500.0,0.00023993,2]
[315150975,1708890642143,-251.06,0.00023993,2]
[315150977,1708890642152,-500.0,0.00023993,2]
[315150979,1708890642162,-500.0,0.00023993,2]
[315150981,1708890642171,-500.0,0.00023993,2]
[315150983,1708890642180,-475.43,0.00023993,2]
[315150985,1708890642190,-500.0,0.00023993,2]
[315150987,1708890642200,-500.0,0.00023993,2]
[315150989,1708890642209,-500.0,0.00023993,2]
[315150991,1708890642218,-500.0,0.00023993,2]
[315150993,1708890642227,-300.0,0.00023993,2]
[315150995,1708890642236,-300.0,0.00023993,2]
[315150997,1708890642246,-300.0,0.00023993,2]
[315150999,1708890642255,-225.84474369,0.00023993,2]
[315151001,1708890642264,-500.0,0.00023993,2]
[315151003,1708890642273,-500.0,0.00023993,2]
[315151006,1708890642291,-500.0,0.00023993,2]
[315151008,1708890642304,-500.0,0.00023993,2]
[315151010,1708890642314,-500.0,0.00023993,2]
[315151012,1708890642324,-500.0,0.00023993,2]
[315151014,1708890642334,-500.0,0.00023993,2]
[315151016,1708890642346,-652.9,0.00023993,2]
[315151018,1708890642356,-662.57,0.00023993,2]
[315151020,1708890642366,-1270.45,0.00023993,2]
[315151022,1708890642376,-500.0,0.00023994,2]
[315151024,1708890642386,-500.0,0.00023994,2]
[315151027,1708890642396,-500.0,0.00023994,2]
[315151029,1708890642406,-713.25,0.00023994,2]
[315151031,1708890642416,-414.1,0.00023994,2]
[315151033,1708890642426,-792.78,0.00023994,2]
[315151035,1708890642436,-500.0,0.00023994,2]
[315151037,1708890642445,-500.0,0.00023994,2]
[315151039,1708890642455,-555.36710708,0.00023994,2]
[315151041,1708890642465,-500.0,0.00023994,2]
[315151043,1708890642475,-500.0,0.00023994,2]
[315151045,1708890642484,-500.0,0.00023994,2]
[315151047,1708890642494,-500.0,0.00023994,2]
[315151049,1708890642504,-500.0,0.00023994,2]
[315151050,1708890642513,-500.0,0.00023994,2]
[315151051,1708890642523,-500.0,0.00023994,2]
[315151052,1708890642533,-500.0,0.00023994,2]
[315151053,1708890642543,-500.0,0.00023994,2]
[315151054,1708890642553,-591.19,0.00023994,2]
[315151055,1708890642562,-1000.17,0.00023994,2]
[315151056,1708890642572,-500.0,0.00023994,2]
[315151057,1708890642583,-500.0,0.00023994,2]
[315151058,1708890642594,-500.0,0.00023994,2]
[315151059,1708890642604,-205.95223205,0.00023994,2]
[315151060,1708890642614,-512.14,0.00023994,2]
[315151061,1708890642626,-500.0,0.00023994,2]
[315151062,1708890642636,-773.62,0.00023994,2]
[315151063,1708890642646,-519.7,0.00023994,2]
[315151064,1708890642656,-546.61,0.00023994,2]
[315151065,1708890642667,-4324.7469749,0.00023995,2]
[315151066,1708890642678,-17923.6058122,0.00023995,2]
[315151067,1708890642689,-3113.2215099,0.00023995,2]
[315151068,1708890642699,-170934.4519999,0.00023995,2]
[315151069,1708890642709,-5841.2161755,0.00023995,2]
[315151070,1708890642718,-3172.5179284,0.00023995,2]
[315151071,1708890642729,-500.0,0.00023997,2]
[315151072,1708890642739,-500.0,0.00023997,2]
[315151073,1708890642748,-500.0,0.00023997,2]
[315151074,1708890642758,-500.0,0.00023997,2]
[315151075,1708890642768,-566.1,0.00023997,2]
[315151076,1708890642778,-500.0,0.00023997,2]
[315151077,1708890642788,-500.0,0.00023997,2]
[315151078,1708890642798,-500.0,0.00023997,2]
[315151080,1708890642808,-500.0,0.00023997,2]
[315151081,1708890642818,-544.04343593,0.00023997,2]
[315151083,1708890642827,-500.0,0.00023997,2]
[315151085,1708890642838,-500.0,0.00023997,2]
[315151086,1708890642847,-500.0,0.00023997,2]
[315151087,1708890642858,-206.23092948,0.00023997,2]
[315151088,1708890642869,-500.0,0.00023997,2]
[315151089,1708890642878,-500.0,0.00023997,2]
[315151090,1708890642888,-500.0,0.00023997,2]
[315151091,1708890642898,-500.0,0.00023997,2]
[315151092,1708890642908,-500.0,0.00023997,2]
[315151093,1708890642919,-500.0,0.00023997,2]
[315151094,1708890642931,-500.0,0.00023997,2]
[315151095,1708890642942,-652.9,0.00023997,2]
[315151096,1708890642952,-662.57,0.00023997,2]
[315151097,1708890642962,-1270.45,0.00023997,2]
[315151098,1708890642973,-155.67647154,0.00023998,2]
[315151099,1708890642984,-642.22672279,0.00023998,2]
[315151100,1708890642995,-500.0,0.00023998,2]
[315151101,1708890643005,-500.0,0.00023998,2]
[315151102,1708890643015,-3117.69407962,0.00023998,2]
[315151103,1708890643028,-300.02,0.00023998,2]
[315151104,1708890643038,-500.0,0.00023998,2]
[315151105,1708890643049,-500.0,0.00023998,2]
[315151106,1708890643059,-500.0,0.00023998,2]
[315151107,1708890643070,-500.0,0.00023998,2]
[315151108,1708890643080,-500.0,0.00023998,2]
[315151109,1708890643091,-713.25,0.00023998,2]
[315151110,1708890643100,-489.68260881,0.00023998,2]
[315151111,1708890643110,-500.0,0.00023998,2]
[315151112,1708890643120,-792.78,0.00023998,2]
[315151113,1708890643130,-500.0,0.00023998,2]
[315151114,1708890643140,-500.0,0.00023998,2]
[315151115,1708890643150,-572.13,0.00023998,2]
[315151116,1708890643160,-500.0,0.00023998,2]
[315151117,1708890643170,-500.0,0.00023998,2]
[315151118,1708890643180,-614.79,0.00023998,2]
[315151119,1708890643189,-500.0,0.00023998,2]
[315151120,1708890643199,-500.0,0.00023998,2]
[315151121,1708890643209,-1226.88,0.00023998,2]
[315151122,1708890643218,-500.0,0.00023998,2]
[315151123,1708890643228,-500.0,0.00023998,2]
[315151124,1708890643237,-500.0,0.00023998,2]
[315151125,1708890643246,-500.0,0.00023998,2]
[315151126,1708890643256,-152.5,0.00023998,2]
[315151127,1708890643265,-500.0,0.00023998,2]
[315151128,1708890643274,-500.0,0.00023998,2]
[315151129,1708890643283,-500.0,0.00023998,2]
[315151130,1708890643292,-591.19,0.00023998,2]
[315151131,1708890643302,-1000.17,0.00023998,2]
[315151132,1708890643311,-904.44,0.00023998,2]
[315151133,1708890643321,-500.0,0.00023998,2]
[315151134,1708890643330,-500.0,0.00023998,2]
[315151135,1708890643340,-163.57373055,0.00023998,2]
[315151136,1708890643350,-897.3,0.00023998,2]
[315151137,1708890643359,-512.14,0.00023998,2]
[315151138,1708890643369,-500.0,0.00023998,2]
[315151139,1708890643378,-773.62,0.00023998,2]
[315151140,1708890643388,-546.61,0.00023998,2]
[315151141,1708890643398,-48670.85540162,0.00023999,4]
[315151142,1708890643407,-625.76695893,0.00023999,2]
[315151143,1708890643417,-610.21871154,0.00023999,2]
[315151144,1708890643426,-376.48504455,0.00023999,2]
[315151145,1708890643436,-610.21871154,0.00023999,2]
[315151146,1708890643446,-500.0,0.00023999,2]
[315151147,1708890643455,-376.48504455,0.00023999,2]
[315151148,1708890643465,-500.0,0.00023999,2]
[315151149,1708890643475,-500.0,0.00023999,2]
[315151150,1708890643484,-500.0,0.00023999,2]
[315151151,1708890643494,-500.0,0.00023999,2]
[315151152,1708890643503,-500.0,0.00023999,2]
[315151153,1708890643513,-500.0,0.00023999,2]
[315151154,1708890643522,-500.0,0.00023999,2]
[315151155,1708890643532,-500.0,0.00023999,2]
[315151156,1708890643541,-500.0,0.00023999,2]
[315151157,1708890643550,-500.0,0.00023999,2]
[315151158,1708890643559,-251.69735537,0.00023999,2]
[315151159,1708890643569,-500.0,0.00023999,2]
[315151160,1708890643579,-500.0,0.00023999,2]
[315151161,1708890643592,-500.0,0.00023999,2]
[315151162,1708890643601,-500.0,0.00023999,2]
[315151163,1708890643611,-500.0,0.00023999,2]
[315151164,1708890643625,-500.0,0.00023999,2]
[315151165,1708890643634,-500.0,0.00023999,2]
[315151166,1708890643643,-500.0,0.00023999,2]
[315151167,1708890643653,-500.0,0.00023999,2]
[315151168,1708890643664,-500.0,0.00023999,2]
[315151169,1708890643673,-500.0,0.00023999,2]
[315151170,1708890643682,-500.0,0.00023999,2]
[315151171,1708890643691,-500.0,0.00023999,2]
[315151172,1708890643701,-500.0,0.00023999,2]
[315151173,1708890643709,-500.0,0.00023999,2]
[315151174,1708890643718,-500.0,0.00023999,2]
[315151175,1708890643728,-500.0,0.00023999,2]
[315151176,1708890643737,-500.0,0.00023999,2]
[315151177,1708890643747,-500.0,0.00023999,2]
[315151178,1708890643757,-349.64654826,0.00023999,2]
[315151179,1708890643766,-500.0,0.00023999,2]
[315151180,1708890643775,-547.29625076,0.00023999,2]
[315151181,1708890643785,-500.0,0.00023999,2]
[315151182,1708890643797,-193.62713474,0.00023999,2]
[315151183,1708890643806,-197.60574846,0.00023999,2]
[315151184,1708890643816,-604.85252512,0.00023999,2]
[315151185,1708890643825,-500.0,0.00023999,2]
[315151186,1708890643834,-500.0,0.00023999,2]
[315151187,1708890643844,-175.91267825,0.00023999,2]
[315151188,1708890643854,-500.0,0.00023999,2]
[315151189,1708890643863,-500.0,0.00023999,2]
[315151190,1708890643872,-500.0,0.00023999,2]
[315151191,1708890643882,-376.48504455,0.00023999,2]
[315151192,1708890643893,-500.0,0.00023999,2]
[315151193,1708890643902,-500.0,0.00023999,2]
[315151194,1708890643911,-500.0,0.00023999,2]
[315151195,1708890643921,-500.0,0.00023999,2]
[315151196,1708890643930,-500.0,0.00023999,2]
[315151197,1708890643939,-500.0,0.00023999,2]
[315151198,1708890643949,-500.0,0.00023999,2]
[315151199,1708890643959,-500.0,0.00023999,2]
[315151200,1708890643968,-500.0,0.00023999,2]
[315151201,1708890643978,-500.0,0.00023999,2]
[315151202,1708890643987,-496.24,0.00023999,2]
[315151203,1708890643996,-500.0,0.00023999,2]
[315151204,1708890644005,-500.0,0.00023999,2]
[315151205,1708890644014,-500.0,0.00023999,2]
[315151206,1708890644024,-500.0,0.00023999,2]
[315151207,1708890644034,-500.0,0.00023999,2]
[315151208,1708890644043,-500.0,0.00023999,2]
[315151209,1708890644054,-500.0,0.00023999,2]
[315151210,1708890644064,-500.0,0.00023999,2]
[315151211,1708890644074,-500.0,0.00023999,2]
[315151212,1708890644083,-294.34316188,0.00023999,2]
[315151213,1708890644093,-500.0,0.00023999,2]
[315151214,1708890644103,-500.0,0.00023999,2]
[315151215,1708890644113,-500.0,0.00023999,2]
[315151216,1708890644124,-414.22694492,0.00023999,2]
[315151217,1708890644134,-500.0,0.00023999,2]
[315151219,1708890644144,-500.0,0.00023999,2]
[315151220,1708890644153,-500.0,0.00023999,2]
[315151221,1708890644163,-500.0,0.00023999,2]
[315151222,1708890644172,-418.01932537,0.00023999,2]
[315151223,1708890644182,-500.0,0.00023999,2]
[315151224,1708890644192,-500.0,0.00023999,2]
[315151225,1708890644201,-500.0,0.00023999,2]
[315151226,1708890644211,-500.0,0.00023999,2]
[315151227,1708890644221,-500.0,0.00023999,2]
[315151228,1708890644231,-500.0,0.00023999,2]
[315151229,1708890644241,-373.54873404,0.00023999,2]
[315151231,1708890644251,-610.21871154,0.00023999,2]
[315151233,1708890644261,-500.0,0.00023999,2]
[315151234,1708890644271,-500.0,0.00023999,2]
[315151235,1708890644280,-498.84,0.00023999,2]
[315151236,1708890644290,-500.0,0.00023999,2]
[315151237,1708890644300,-500.0,0.00023999,2]
[315151238,1708890644310,-500.0,0.00023999,2]
[315151239,1708890644320,-500.0,0.00023999,2]
[315151240,1708890644330,-500.0,0.00023999,2]
[315151241,1708890644340,-500.0,0.00023999,2]
[315151242,1708890644350,-500.0,0.00023999,2]
[315151243,1708890644360,-500.0,0.00023999,2]
[315151244,1708890644369,-500.0,0.00023999,2]
[315151245,1708890644379,-500.0,0.00023999,2]
[315151246,1708890644388,-500.0,0.00023999,2]
[315151247,1708890644397,-500.0,0.00023999,2]
[315151248,1708890644407,-500.0,0.00023999,2]
[315151249,1708890644416,-500.0,0.00023999,2]
[315151250,1708890644427,-500.0,0.00023999,2]
[315151251,1708890644436,-500.0,0.00023999,2]
[315151252,1708890644445,-500.0,0.00023999,2]
[315151253,1708890644454,-500.0,0.00023999,2]
[315151254,1708890644522,-467.8403767,0.00023999,2]
[315151255,1708890644532,-500.0,0.00023999,2]
[315151256,1708890644541,-500.0,0.00023999,2]
[315151257,1708890644550,-212.96901207,0.00023999,2]
[315151258,1708890644559,-500.0,0.00023999,2]
[315151259,1708890644569,-500.0,0.00023999,2]
[315151260,1708890644579,-500.0,0.00023999,2]
[315151261,1708890644589,-500.0,0.00023999,2]
[315151262,1708890644599,-500.0,0.00023999,2]